Cogmind - Beta 13 @@@ ROGUE MODE // 2024.05.17 @ 20:46:57 Player: Waste Result: Destroyed by YI-UF0 with YI-UF0's Doublenader Performance ------------- Evolutions (0) 0 Regions Visited (2) 400 Robots Destroyed (22) 110 Value Destroyed (499) 499 Prototype IDs (2) 40 Alien Tech Used (0) 0 Bonus (110) 110 TOTAL SCORE: 1159 Bonus ------- Follower Combat Kills 110 Cogmind --------- Core Integrity 0/250 Matter 294/300 Energy 250/250 System Corruption 3% Temperature Cool (16) Movement Core (2450) Ox48 Location -10/Mines Parts ------- > --- POWER (1) -------- Ion Engine > --- PROPULSION (2) --- (None) > --- UTILITY (2) ------ Cargo Storage Unit > --- WEAPON (2) ------- Small Laser Light Assault Rifle > --- INVENTORY (30) --- Ion Engine Ion Engine Ion Engine Light Treads Light Treads Light Treads Light Treads Light Treads Light Treads Light Treads Wheel Wheel Wheel Wheel Improved Heat Sink Small Storage Unit Structural Scanner Sensor Array Core Shielding Core Shielding Propulsion Shielding Utility Shielding Light Assault Rifle Grenade Launcher Mini Grenade Launcher Mini Grenade Launcher Mini Grenade Launcher Mini Grenade Launcher Peak State ------------ > --- POWER ------------ Ion Engine > --- PROPULSION ------- Compact Wheel Compact Wheel > --- UTILITY ---------- Cargo Storage Unit > --- WEAPON ----------- Medium Laser Mini Grenade Launcher > --- INVENTORY -------- Ion Engine Ion Engine Ion Engine Light Treads Light Treads Light Treads Light Treads Light Treads Light Treads Light Treads Wheel Wheel Wheel Wheel Improved Heat Sink Small Storage Unit Structural Scanner Sensor Array Core Shielding Core Shielding Propulsion Shielding Utility Shielding Small Laser Small Laser Grenade Launcher Mini Grenade Launcher Mini Grenade Launcher Mini Grenade Launcher [Rating: 11] Favorites ----------- Power Light Ion Engine Engine Light Ion Engine Propulsion Compact Wheel Leg Aluminum Leg Wheel Compact Wheel Utility Cargo Storage Unit Storage Cargo Storage Unit Weapon Light Assault Rifle Energy Gun Medium Laser Ballistic Gun Light Assault Rifle Launcher Mini Grenade Launcher Build | -11 -10 -10 ------- Run | Yrd Mat Min Slots Evolved . | . . . Power . | . . . Propulsion . | . . . Utility . | . . . Weapon . | . . . Parts Attached 11 | . 5 6 Power 1 | . . 1 Engine 1 | . . 1 Core . | . . . Reactor . | . . . Propulsion 3 | . 3 . Treads . | . . . Leg . | . . . Wheel 3 | . 3 . Hover . | . . . Flight . | . . . Utility 1 | . 1 . Device . | . . . Storage 1 | . 1 . Processor . | . . . Hackware . | . . . Protection . | . . . Artifact . | . . . Weapon 6 | . 1 5 Energy Gun 4 | . 1 3 Energy Cannon . | . . . Ballistic Gun 1 | . . 1 Ballistic Cannon . | . . . Launcher 1 | . . 1 Special Weapon . | . . . Impact Weapon . | . . . Slashing Weapon . | . . . Piercing Weapon . | . . . Special Melee Weapon . | . . . Unidentified Prototypes . | . . . Parts Lost 7 | . 2 5 Power 1 | . 1 . Propulsion 2 | . . 2 Utility . | . . . Weapon 4 | . 1 3 Highest Loss Streak 3 | . 2 3 To Critical Strikes . | . . . Average Slot Usage (%) 80 | . 80 81 Engine 10 | . 9 11 Wheel 27 | . 26 27 Storage 14 | . 14 14 Energy Gun 8 | . 4 15 Ballistic Gun 15 | . 23 2 Launcher 3 | . . 9 Naked Turns . | . . . Heaviest Build 148 | 11 146 148 Greatest Support 32 | 20 32 32 Greatest Overweight (x) 9 | . 9 4 Average Overweight (x) 3 | . 3 4 Largest Inventory Capacity 30 | . 30 30 Average Capacity 29 | . 29 30 Most Carried 30 | . 30 30 Average Carried 25 | . 23 29 Final Capacity 30 | 8 30 30 Final Carried 30 | 6 30 28 Class Distribution -------------------- 98% | Hauler-Mutant Dominant Class ---------------- Hauler-Mutant | -10/Materials Hauler-Mutant | -10/Mines Resources | -11 -10 -10 ----------- Run | Yrd Mat Min Matter Collected 658 | 200 282 176 Remotely . | . . . Salvage Created 761 | . 535 226 Parts 52 | . 41 11 Haulers Intercepted 2 | . 2 . Recyclers Shooed . | . . . Parts Field Recycled . | . . . Retrieved Matter . | . . . Parts Self-Destructed . | . . . Prevented . | . . . Kills | -11 -10 -10 ------- Run | Yrd Mat Min Combat Hostiles Destroyed 21 | . 9 12 Guns 13 | . 9 4 AOE 8 | . . 8 Classes Destroyed 7 | . 5 2 Worker 2 | . . 2 Builder 3 | . 3 . Hauler 2 | . 2 . Watcher 2 | . 2 . Swarmer 2 | . 2 . Grunt 11 | . 7 4 Assembled 8 | . . 8 Best Kill Streak 5 | . 3 5 Combat Bots Only 5 | . 2 5 Max Kills in Single Turn 2 | . 1 2 Gunslinging . | . . . Exploded 1 | . . 1 Melee . | . . . Uniques/NPCs Destroyed . | . . . Combat | -11 -10 -10 -------- Run | Yrd Mat Min Hostile Shots Fired 94 | . 52 42 Missed 32 | . 20 12 Damage Taken 987 | . 352 635 Core 263 | . 70 193 Absorbed by Shields . | . . . Core Remaining (%) 100 | 100 . . Volleys Fired 95 | . 65 30 Largest 2 | . 2 2 Hottest 90 | . 70 90 Shots Fired 180 | . 130 50 Gun 169 | . 130 39 Cannon . | . . . Launcher 11 | . . 11 Special . | . . . Kinetic 130 | . 121 9 Thermal 39 | . 9 30 Explosive 11 | . . 11 Electromagnetic . | . . . Robot Hit Streak 12 | . 9 12 Robot Miss Streak 3 | . 3 3 Penetration Max . | . . . Secondary Targets 2 | . 2 . Max Gunslinging Chain 1 | . 1 . Shots Hit Robots 112 | . 81 31 Core Hits 56 | . 31 25 Critical Kills . | . . . Critical Parts Destroyed . | . . . Critical Strikes 1 | . 1 . Burn 1 | . 1 . Melee Attacks . | . . . Impact . | . . . Slashing . | . . . Piercing . | . . . Sneak Attacks . | . . . Combat Hostiles . | . . . Follow-up Attacks . | . . . Damage Inflicted 1884 | . 888 996 Guns 1230 | . 888 342 Cannons . | . . . Explosions 654 | . . 654 Melee . | . . . Ramming . | . . . Kinetic 881 | . 814 67 Thermal 349 | . 74 275 Explosive 654 | . . 654 Electromagnetic . | . . . Impact . | . . . Slashing . | . . . Piercing . | . . . Highest Corruption 3 | . 3 3 Average Corruption 2 | . 2 3 Corruption Purged . | . . . Corruption Blocked . | . . . Effects 27 | . 16 11 Message Errors 6 | . 3 3 Matter Fused 3 | . 2 1 Heat Flow Errors 1 | . . 1 Energy Discharges 6 | . 4 2 Parts Rejected 1 | . 1 . Data Loss (minor) 6 | . 3 3 Misfires 2 | . 1 1 Alerts 2 | . 2 . Overload Shots . | . . . Overflow Damage 35 | . . 35 Projectiles . | . . . Explosions 35 | . . 35 Melee . | . . . Knockbacks . | . . . Impact . | . . . Kinetic . | . . . Secondary . | . . . Self-Inflicted Damage . | . . . Shots . | . . . Rammed . | . . . Targets Rammed . | . . . Kicked . | . . . Crushed . | . . . Highest Temperature 258 | . 20 258 Average Temperature 57 | . 10 79 Received Heat Transfer 309 | . 168 141 Siege Activations . | . . . Robots Corrupted . | . . . Combat Hostiles . | . . . Parts Fried . | . . . Impact Corruptions . | . . . Robots Melted . | . . . Combat Hostiles . | . . . Parts Melted 1 | . . 1 Heat Transferred 1014 | . 296 718 Parts Sabotaged . | . . . Parts Stolen . | . . . Parts Stripped . | . . . Power Chain Reactions . | . . . Alert | -11 -10 -10 ------- Run | Yrd Mat Min Peak Influence 175 | . 175 161 Initial . | . . . Average 64 | . 46 97 Maximum Alert Level . | . . . Low Security (%) 100 | . 100 100 Level 1 . | . . . Level 2 . | . . . Level 3 . | . . . Level 4 . | . . . Level 5 . | . . . High Security . | . . . Max Security . | . . . Squads Dispatched 2 | . 1 1 Investigation 1 | . 1 . Extermination . | . . . Reinforcement . | . . . Assault 1 | . . 1 Garrison . | . . . Intercept . | . . . Searches Triggered . | . . . Construction Impeded . | . . . Haulers Reinforced . | . . . Active Scanning Responses . | . . . Cargo Convoy Interrupts . | . . . Stealth | -11 -10 -10 --------- Run | Yrd Mat Min Distress Signals 3 | . 3 . Communications Jammed . | . . . Distress Signals . | . . . Times Spotted 41 | . 20 21 Peak Tracking Total 10 | . 3 10 Tactical Retreats 6 | . 2 4 Traps | -11 -10 -10 ------- Run | Yrd Mat Min Traps Triggered 3 | . 3 . Indirectly . | . . . Trap Hack Attempts . | . . . Triggered . | . . . Disarmed . | . . . Reprogrammed . | . . . Reused . | . . . Traps Extracted . | . . . Installed . | . . . Triggered . | . . . Machines | -11 -10 -10 ---------- Run | Yrd Mat Min Machines Disabled . | . . . Max in Single Turn . | . . . Machines Repaired . | . . . Machines Dismantled . | . . . Machines Sabotaged . | . . . Overloaded Fab Kills . | . . . Hacking | -11 -10 -10 --------- Run | Yrd Mat Min Machines Accessed 2 | . 2 . Terminals 2 | . 2 . Fabricators . | . . . Repair Stations . | . . . Recycling Units . | . . . Scanalyzers . | . . . Garrison Access . | . . . Total Hacks 7 | . 7 . Successful 3 | . 3 . Failed 4 | . 4 . Catastrophic . | . . . Database Lockouts . | . . . Manual 7 | . 7 . Terminals 7 | . 7 . Fabricators . | . . . Repair Stations . | . . . Recycling Units . | . . . Scanalyzers . | . . . Garrison Access . | . . . Terminal Hacks 3 | . 3 . Robot Analysis 2 | . 2 . Prototype ID Bank 1 | . 1 . Fabricator Hacks . | . . . Repair Station Hacks . | . . . Recycling Unit Hacks . | . . . Scanalyzer . | . . . Garrison Access Hacks . | . . . Unauthorized Hacks . | . . . Terminals . | . . . Fabricators . | . . . Repair Stations . | . . . Recycling Units . | . . . Scanalyzers . | . . . Garrison Access . | . . . Data Cores Recovered . | . . . Used . | . . . Hacking Detections 2 | . 2 . Full Trace Events . | . . . Feedback Events . | . . . Feedback Blocked . | . . . Robot Schematics Acquired . | . . . Robots Built . | . . . Authchips . | . . . Time . | . . . Total Robot Build Rating . | . . . Part Schematics Acquired . | . . . Parts Built . | . . . Authchips . | . . . Time . | . . . Total Part Build Rating . | . . . Parts Repaired . | . . . Time . | . . . Parts Recycled . | . . . Recycled Matter . | . . . Retrieved Matter . | . . . Retrieved Components . | . . . Parts Scanalyzed . | . . . Part Schematics Acquired . | . . . Parts Damaged . | . . . Bothacking | -11 -10 -10 ------------ Run | Yrd Mat Min Used RIF Installer . | . . . Robots Hacked . | . . . Non-combat . | . . . Combat . | . . . Robot Hacks Applied . | . . . Relay Couplers Released . | . . . Fabnet Peak Effective % . | . . . Robots Rewired . | . . . Allies Hacked . | . . . Hacks Repelled . | . . . Allies | -11 -10 -10 -------- Run | Yrd Mat Min Total Allies 1 | . . 1 Largest Group 1 | . . 1 Highest-Rated Group 31 | . . 31 Highest-Rated Ally 31 | . . 31 Total Orders . | . . . Ally Attacks 10 | . . 10 Total Damage 171 | . . 171 Kills 4 | . . 4 Allies Corrupted . | . . . Allies Melted . | . . . Intel | -11 -10 -10 ------- Run | Yrd Mat Min Robot Analysis Total 2 | . 2 . Derelict Logs Recovered 1 | . . 1 Drone Launches . | . . . Drone Recoveries . | . . . Exploration | -11 -10 -10 ------------- Run | Yrd Mat Min Turns Passed 1959 | . 1268 691 Spaces Moved 997 | 1 642 354 Core . | . . . Treads . | . . . Legs 27 | 1 26 . Wheels 970 | . 616 354 Hover . | . . . Flight . | . . . Fastest Speed 120 | 120 120 160 Average Speed 160 | 120 160 160 Slowest Speed 610 | 120 610 160 Overloaded Moves . | . . . Propulsion Burnouts . | . . . Robots Hopped . | . . . Cave-ins Triggered . | . . . Exploration Rate (%) 57 | 2 96 75 Regions Visited 2 Branch Regions 1 Pre-discovered Areas . | . . . Known Exits Taken . | . . . Unknown Exits Taken 2 | 1 1 . Scrap Searched 1 | . . 1 Spaces Dug . | . . . Terrain Destroyed 92 | . . 92 Melee . | . . . Projectile . | . . . AOE 92 | . . 92 Terrain Rammed . | . . . Walls Destroyed . | . . . Machines Disabled . | . . . Actions | -11 -10 -10 --------- Run | Yrd Mat Min Total 1197 | . 767 430 Wait 58 | . 20 38 Move 995 | . 641 354 Hop . | . . . Pick Up 32 | . 30 2 Fast Attach 4 | . 4 . Attach 5 | . 1 4 Detach . | . . . Swap 2 | . . 2 Drop 6 | . 6 . Fire 95 | . 65 30 Melee . | . . . Ram . | . . . Kick . | . . . Crush . | . . . Escape Stasis . | . . . Rewire . | . . . Trap . | . . . Miscellaneous . | . . . Route ------- -11/Scrapyard -10/Materials (discovered 5 exits: [*Mat x3] / [*Min] / [*Sub]) -10/Mines (discovered 2 exits: [*Mat x2]) History --------- Turn | Location | Event 1 | -11/Scrapyard | Discovered new exit (range 0) 1 | -11/Scrapyard | Entered Materials 330 | -10/Materials | Build established: Hauler-Mutant 338 | -10/Materials | Discovered new exit (range 16) 382 | -10/Materials | Discovered new exit (range 9) 733 | -10/Materials | Discovered new exit (range 13) 1099 | -10/Materials | Discovered new exit (range 4) 1259 | -10/Materials | Discovered new exit (range 12) 1269 | -10/Materials | Entered Mines 1278 | -10/Mines | Core integrity fell below 50% 1295 | -10/Mines | Learned location of 1 exit from Materials 1337 | -10/Mines | Found a hidden stash of uninstalled traps 1378 | -10/Mines | Assembled infested the area 1439 | -10/Mines | Discovered new exit (range 11) 1590 | -10/Mines | Discovered new exit (range 9) 1652 | -10/Mines | Met a Derelict testing a Signal Generator 1951 | -10/Mines | Core integrity fell below 20% 1960 | -10/Mines | Destroyed by YI-UF0 with YI-UF0's Doublenader Last Messages --------------- 01903_ Acquired 40 matter. 01908_ System corrupted: Component data lost. 01909_ U-05 Engineer builds a Wall. 01914_ U-05 Engineer lays Concrete. 01921_ U-05 Engineer builds a Wall. 01926_ The unstable cave ceiling collapses. 01926_ U-05 Engineer lays Concrete. 01929_ U-05 Engineer builds a Wall. 01937_ U-05 Engineer lays Concrete. 01941_ U-05 Engineer builds a Wall. 01945_ The unstable cave ceiling collapses. 01950_ T-07 Excavator destroyed. 01954_ The unstable cave ceiling collapses. 01954_ Com. Wheel destroyed. 01954_ Sml. Laser destroyed. 01955_ The unstable cave ceiling collapses. 01958_ Com. Wheel destroyed. 01959_ YI-UF0 mumbles something. 01959_ The unstable cave ceiling collapses. 01959_ U-05 Engineer lays Concrete. Map ----- +----------------------------------------------------+ | ??# #????# ###=#????????????## !%|= | | ??## #?????# *=%#?????????????### !=* | | ???# ##?????## ####????#####??????# ## | | ???# ##???????# ##???????# #????? ?# | | ???# %##???????## ##????????# ##???#####?# | | ???## ==##???????# #?????????## ####%#?????# | | ????## **=##?????## #?????????# ![%[=#?????## | | ??#### *% ####### #?????????# %#####??????? | | ?## %* ##?????????## # #???????? | | ## |= ##???????#### #% ##???????? | | # #######! ##??????### ## ##???????? | | # #?????####?####### ##??????? | | # < ##?????????## #??????? | | ## # #?????????## ##?????? | | # ##?????##### u ## ##????? | | ## # ##??????# #### #????? | | # ####??????# ####??## #????? | | #???????## ##??????## #?#### | | ### #????????## ##????????####?# | | #?# #?????????## ! ###??????????????# ## | | #?# #???????#??###### #????????????????# #? | | ## ##?# #? # ### ?##### % #????????????????# #? | | ### #??# #? # ## ##???????????????# #? | | #### # #?????????????###[## | | ### % #?????????????#%[% | | ??###### g @ #?????????????#=!= | | ???????## # #?????????????# | | ????????# #????????????# | | ???????# # # ###????????????# | | ???????# # ## # # # #??????????????###### | | ??????# ? ??##?#########???????????????????? | | ??????# ????????????????????????????????????? | | ????? ???????????????????????????????????? | | ????#### # # ???????????????????????????????????? | | ???????## ?#???????????????????????????????????? | | ???????? ?????????????????????????????????????? | | ???????? # ?????????????????????????????????????? | | ??????? #? ?????????????????????????????????????? | | ??????????? ?????????????????????????????????????? | | ??????????? ?????????????????????????????????????? | | ??????????? ?????????????????????????????????????? | | ?????????????????????????????????????????????????? | | ?????????????????????????????????????????????????? | | ?????????????????????????????????????????????????? | | ?????????????????????????????????????????????????? | | ?????????????????????????????????????????????????? | | ?????????????????????????????????????????????????? | | ?????????????????????????????????????????????????? | | ?????????????????????????????????????????????????? | | ?????????????????????????????????????????????????? | +----------------------------------------------------+ Best States ------------- Heat Dissipation 25 Energy Generation 10 Energy Capacity 250 Matter Stores 300 Matter Capacity 300 Sight Range 16 Terrain Scan Density 10 Evasion (%) 50 Item Schematics ----------------- None Robot Schematics ------------------ None Fabricated ------------ Nothing Alien Tech Used ----------------- None Achievements -------------- Packrat Challenges ------------ None Game ------ Seed AngularPlatingInsulator Manual? 0 Play Time 00:11:17 Cumulative 225.1 hours Start 2024.05.17 @ 20:38:48 End 2024.05.17 @ 20:46:57 Sessions 1 Manual Loads 0 Difficulty Rogue Special Mode None Game No. 285 Rogue 285 Adventurer 0 Explorer 0 Win Type - Total 8 Types 4/1/0/1/1/0/0/1/0 Lore% 71 Gallery% 80 Achievement% 69 Wizard Run 0 Options --------- Layout 0 ASCII 0 Keyboard 0 Movement Numpad Keybinds 0 Fullscreen 1 Font 18/SmallcapsGlow Map View 76x50 Zoom Use 0% Tactical HUD 1 Map Filters NONE Filters NONE Steam 1 RUN: 75154189-abe1-4f50-ae76-9eafd5f5f9f4